[Event "44th Chess Olympiad Open 2022"]
[Site "Chennai"]
[Date "2022.08.06"]
[Round "8.40"]
[White "Al Hosani, Omran"]
[Black "Greet, Andrew N"]
[Result "0-1"]
[WhiteElo "2215"]
[BlackElo "2392"]
[Annotator "TA"]
[PlyCount "114"]
[EventDate "2022.??.??"]
[TimeControl "60"]

{[%evp 9,114,15,45,39,91,-5,0,-11,-1,-3,-6,0,0,0,0,-27,-22,-43,-36,-66,-68,-77,
-70,-70,-69,-71,-66,-82,-87,-97,-95,-88,-67,-119,-120,-183,-190,-169,-172,-358,
-359,-488,-489,-722,-713,-940,-931,-1071,-1067,-1052,-1052,-926,-380,-344,-278,
-767,-399,-386,-339,-469,-463,-537,-435,-436,-435,-435,-435,-435,-435,-434,
-434,-833,-824,-5518,-526,-975,-410,-391,-354,-29986,-2746,-29987,-29970,
-29985,-29974,-29974,-29975,-29975,-29976,-29976,-29977,-29977,-29978,-29981,
-29980,-29980,-29981,-29983,-29984,-29984,-29985,-29985,-29986,-29986,-29987,
-29987,-29988]} 1. d4 {[%emt 0:00:03]} e6 {[%emt 0:00:10]} 2. c4 {[%emt 0:00:
00]} f5 {[%emt 0:00:06]} 3. Nc3 {[%emt 0:00:13]} Nf6 {[%emt 0:00:08]} 4. a3 {
[%emt 0:00:14]} b6 {[%emt 0:02:56]} 5. Bf4 {[%emt 0:06:32]} g6 {[%emt 0:09:12]
[#]} 6. e3 $146 {[%emt 0:01:55] A85: Dutch Defence: 2 c4 Nf6 3 Nc3.} ({
Predecessor:} 6. h4 Bg7 7. h5 Nxh5 8. Rxh5 gxh5 9. e4 O-O 10. e5 Nc6 11. Qxh5
Nxd4 12. O-O-O c5 {1-0 (35) Ganguly,S (2650)-McShane,L (2640) Riadh 2017}) 6...
Bg7 {[%emt 0:00:41] [#]} (6... Bb7 $14) 7. Nh3 {[%emt 0:01:49]} (7. Qf3 $1 $16
{[%cal Rf3a8]} d5 8. cxd5 exd5 9. Nb5) 7... Bb7 {[%emt 0:10:56]} 8. Bg3 {
[%emt 0:04:06] The position is equal.} O-O {[%emt 0:03:23]} 9. Qc2 {[%emt 0:00:
00]} Ne4 {[%emt 0:04:04]} 10. Nxe4 {[%emt 0:01:53]} Bxe4 {[%emt 0:00:14]} 11.
Qd2 {[%emt 0:00:12]} Bb7 {[%emt 0:05:50]} 12. Nf4 {[%emt 0:02:06]} c5 {[%emt 0:
00:00]} 13. dxc5 {[%emt 0:07:19]} Na6 {[%emt 0:09:45]} 14. Nd3 {[%emt 0:03:21]}
Nxc5 {[%emt 0:03:05]} 15. Nxc5 {[%emt 0:00:40]} bxc5 {[%emt 0:00:04]} 16. Bd6 {
[%emt 0:00:28][%csl Yc5,Yf8]} Qb6 $1 {[%emt 0:00:15]} 17. Bxf8 {[%emt 0:00:00]}
Rxf8 {[%emt 0:00:06]} 18. Rb1 {[%emt 0:09:28] White is on the road to losing.}
Be4 {[%emt 0:04:36]} 19. Bd3 {[%emt 0:06:13]} Bxg2 {[%emt 0:00:07]} 20. Rg1 {
[%emt 0:00:05]} Bc6 {[%emt 0:02:51]} 21. b4 {[%emt 0:04:39]} (21. h4 $15) 21...
Qc7 $36 {[%emt 0:00:53] Black is in control.} 22. Rg3 {[%emt 0:09:02]} (22. f4
$17 {was called for.}) 22... f4 $19 {[%emt 0:05:46]} 23. exf4 {[%emt 0:01:33]}
Rxf4 {[%emt 0:00:46]} 24. bxc5 $2 {[%emt 0:03:07]} (24. b5 Bb7 25. Qe2) 24...
Bd4 $1 {[%emt 0:01:24][%csl Yc5,Yf2]} 25. f3 {[%emt 0:02:15]} Bxf3 {[%emt 0:03:
39] Hoping for ...Qe5+. A strong pair of Bishops.} 26. Be2 {[%emt 0:04:47]} (
26. Qb4 $142 Bh5 27. Be2 (27. Qb8+ $2 Rf8 $19) 27... Bf2+ 28. Kd2 Bxg3 29. hxg3
) 26... Qe5 {[%emt 0:06:46] And now ... Bc3 would win.} 27. Rb8+ {[%emt 0:06:
55]} Kg7 {[%emt 0:06:06] aiming for ... Bc3.} 28. Rxf3 {[%emt 0:02:23]} Rxf3 {
[%emt 0:00:06] [#] Discovered Attack} 29. Kd1 {[%emt 0:00:04]} Rxa3 {[%emt 0:
00:33] Active counter play!} 30. Rb1 {[%emt 0:00:22]} Qxc5 {[%emt 0:00:37]} (
30... Qe4 $142 31. Rc1 Qh1+ 32. Kc2 Ra2+ 33. Kb1 Rxd2 34. Rxh1 Rxe2) 31. Qb4 {
[%emt 0:00:43]} Ra1 {[%emt 0:03:05]} 32. Qb7 {[%emt 0:00:22]} (32. Qxc5 Rxb1+
33. Kc2 Bxc5 34. Kxb1) 32... Rxb1+ {[%emt 0:00:28]} 33. Qxb1 {[%emt 0:00:08]
Endgame KQB-KQB} Be5 {[%emt 0:00:48]} 34. Qb7 {[%emt 0:01:15]} Qd4+ {[%emt 0:
01:02]} 35. Kc2 {[%emt 0:00:31]} Bxh2 {[%emt 0:01:37]} 36. Qb5 {[%emt 0:00:42]}
Bg1 {[%emt 0:00:00]} 37. Qb4 {[%emt 0:00:15]} Qc5 {[%emt 0:02:18] Prevents
Qe7+.} 38. Qb7 {[%emt 0:07:13]} Qd6 {[%emt 0:00:11]} 39. Bd3 {[%emt 0:00:12]}
Bc5 {[%emt 0:00:00]} 40. Qc8 {[%emt 0:00:25]} (40. Qb5 $142) 40... a5 {[%emt 0:
01:07] ...Bb4 is the strong threat.} 41. Qa8 {[%emt 0:30:17]} Bb4 {[%emt 0:30:
17]} 42. Qa7 {[%emt 0:00:13] Prevents Qd4.} e5 {[%emt 0:01:23]} (42... Qe5 $142
{( -> ... Qc3+)} 43. Qxd7+ Kh6) 43. Qa8 {[%emt 0:01:07]} Qd4 {[%emt 0:00:23]}
44. Qf3 $2 {[%emt 0:00:57]} (44. Qd5 $19) 44... a4 {[%emt 0:01:21]} (44... Qc3+
$142 45. Kb1 Bc5 46. Qh3 Kg8 47. Qf3 Bd4 48. Qd5+ Kh8 49. Qb7 Qxd3+ 50. Kc1
Qxc4+ 51. Kd1 Qa4+ 52. Kc1 Qc4+ 53. Kd1 Qa4+ 54. Kc1 Qc4+) 45. Be4 {[%emt 0:00:
15]} Qxc4+ {[%emt 0:02:08] Black mates.} 46. Kb1 {[%emt 0:00:15]} Qb3+ {
[%emt 0:03:16]} 47. Qxb3 {[%emt 0:00:07]} axb3 {[%emt 0:00:03] KB-KB} 48. Kb2 {
[%emt 0:00:07]} h5 {[%emt 0:00:21]} 49. Kxb3 {[%emt 0:00:07]} Bc5 {[%emt 0:00:
08]} 50. Kc4 {[%emt 0:00:05]} d6 {[%emt 0:00:04]} 51. Bf3 {[%emt 0:00:17]} Kh6
{[%emt 0:00:00]} 52. Kd3 {[%emt 0:00:11]} g5 {[%emt 0:00:09][%cal Yg6g5,Yg5g4]}
53. Ke4 {[%emt 0:00:07]} g4 {[%emt 0:00:07]} 54. Be2 {[%emt 0:00:06]} Kg5 {
[%emt 0:00:06]} 55. Bd1 {[%emt 0:00:07]} h4 {[%emt 0:00:06][%cal Yh5h4,Yh4h3]}
56. Be2 {[%emt 0:00:06]} h3 {[%emt 0:00:11]} 57. Bf1 {[%emt 0:00:07]} Kh4 {
[%emt 0:00:32] Weighted Error Value: White=1.05/Black=0.76} 0-1

[Event "44th Chess Olympiad Open 2022"]
[Site "Chennai"]
[Date "2022.08.06"]
[Round "8.40"]
[White "Mohamed Saeed Laily"]
[Black "Olson, Hamish"]
[Result "0-1"]
[WhiteElo "2030"]
[BlackElo "2343"]
[Annotator "RC"]
[PlyCount "124"]
[EventDate "2022.??.??"]
[TimeControl "60"]

1. d4 {[%emt 0:00:02]} d5 {[%emt 0:00:07]} 2. Bf4 {[%emt 0:00:21]} c5 {[%emt 0:
00:00]} 3. e3 {[%emt 0:00:18]} cxd4 {[%emt 0:00:12]} 4. exd4 {[%emt 0:00:16]}
Nc6 {[%emt 0:00:20]} 5. c3 {[%emt 0:00:56]} Bf5 {[%emt 0:00:25]} 6. Bd3 {
[%emt 0:07:54]} Bxd3 {[%emt 0:04:15]} 7. Qxd3 {[%emt 0:00:02]} e6 {[%emt 0:00:
00]} 8. Nd2 {[%emt 0:00:40]} Bd6 {[%emt 0:00:23]} 9. Ne2 {[%emt 0:02:48]} Nf6 {
[%emt 0:01:42]} 10. O-O {[%emt 0:00:35]} O-O {[%emt 0:00:25]} 11. Qf3 {[%emt 0:
00:00]} Rc8 {[%emt 0:03:04]} 12. Nc1 {[%emt 0:05:44]} e5 {[%emt 0:04:11]} 13.
dxe5 {[%emt 0:01:16]} Nxe5 {[%emt 0:00:16]} 14. Bxe5 {[%emt 0:00:55]} Bxe5 {
[%emt 0:00:05]} 15. Nd3 {[%emt 0:00:39]} Bb8 {[%emt 0:01:11]} 16. Nb3 {[%emt 0:
00:00]} Ne4 {[%emt 0:04:23]} 17. Rad1 {[%emt 0:16:04]} Ng5 {[%emt 0:10:37]} 18.
Qh5 {[%emt 0:04:34]} Rc6 {[%emt 0:04:14]} 19. f4 {[%emt 0:09:51]} Qb6+ {
[%emt 0:06:18]} 20. Nd4 {[%emt 0:15:29]} Ne6 {[%emt 0:02:30]} 21. Qxd5 {
[%emt 0:08:31]} Rd8 {[%emt 0:07:52]} 22. Qb5 {[%emt 0:01:35]} Nxd4 {[%emt 0:00:
00]} 23. Qxb6 {[%emt 0:00:02]} Rxb6 {[%emt 0:01:57]} 24. cxd4 {[%emt 0:00:04]}
Rbd6 {[%emt 0:04:40]} 25. Nc5 {[%emt 0:07:58]} Rxd4 {[%emt 0:00:55]} 26. Rxd4 {
[%emt 0:00:03]} Rxd4 {[%emt 0:00:04]} 27. Nxb7 {[%emt 0:03:24]} Bc7 {[%emt 0:
00:00]} 28. Rc1 {[%emt 0:02:27]} Bb6 {[%emt 0:00:20]} 29. Kf1 {[%emt 0:00:47]}
Rxf4+ {[%emt 0:01:15]} 30. Ke2 {[%emt 0:00:21]} g6 {[%emt 0:01:20]} 31. Nc5 {
[%emt 0:00:07]} Kg7 {[%emt 0:02:22]} 32. g3 {[%emt 0:00:26]} Rd4 {[%emt 0:00:
00]} 33. Rc2 {[%emt 0:00:48]} h5 {[%emt 0:00:41]} 34. a3 {[%emt 0:01:49]} h4 {
[%emt 0:00:36]} 35. b4 {[%emt 0:02:26]} Kh6 {[%emt 0:06:40]} 36. Rc3 {[%emt 0:
00:00]} f5 {[%emt 0:01:23]} 37. Kf3 {[%emt 0:00:58]} Rd2 {[%emt 0:00:53]} 38.
gxh4 {[%emt 0:00:42]} Rxh2 {[%emt 0:00:30]} 39. Rc4 {[%emt 0:00:39]} Rh3+ {
[%emt 0:00:29]} 40. Kg2 {[%emt 0:00:06]} Rxa3 {[%emt 0:00:19]} 41. Ne6 {
[%emt 0:30:42]} Re3 {[%emt 0:41:11]} 42. Ng5 {[%emt 0:00:00]} Kh5 {[%emt 0:00:
00]} 43. Nf3 {[%emt 0:00:00]} Re4 {[%emt 0:10:25]} 44. Rc8 {[%emt 0:00:00]} Kg4
{[%emt 0:00:00]} 45. Rc2 {[%emt 0:02:01]} Rxb4 {[%emt 0:00:00]} 46. Ne5+ {
[%emt 0:00:11]} Kxh4 {[%emt 0:00:00]} 47. Nxg6+ {[%emt 0:00:07]} Kg5 {[%emt 0:
00:00]} 48. Ne5 {[%emt 0:00:08]} Re4 {[%emt 0:00:00]} 49. Nf3+ {[%emt 0:00:56]}
Kf4 {[%emt 0:00:00]} 50. Rb2 {[%emt 0:00:45]} Ra4 {[%emt 0:00:00]} 51. Re2 {
[%emt 0:00:53]} Ra3 {[%emt 0:00:00]} 52. Ne1 {[%emt 0:01:52]} Re3 {[%emt 0:00:
00]} 53. Rf2+ {[%emt 0:00:00]} Kg4 {[%emt 0:00:00]} 54. Nf3 {[%emt 0:00:00]} f4
{[%emt 0:00:00]} 55. Nh2+ {[%emt 0:00:00]} Kf5 {[%emt 0:00:00]} 56. Nf1 {
[%emt 0:00:00]} Re1 {[%emt 0:00:00]} 57. Rf3 {[%emt 0:01:06]} Re2+ {[%emt 0:00:
00]} 58. Kh1 {[%emt 0:00:36]} Kg4 {[%emt 0:00:00]} 59. Rb3 {[%emt 0:00:35]} Re1
{[%emt 0:00:00]} 60. Kg2 {[%emt 0:00:29]} f3+ {[%emt 0:00:00]} 61. Kh2 {
[%emt 0:00:22]} Rxf1 {[%emt 0:00:00]} 62. Rxb6 {[%emt 0:00:08]} Rf2+ {[%emt 0:
00:00]} 0-1

[Event "44th Chess Olympiad Open 2022"]
[Site "Chennai"]
[Date "2022.08.06"]
[Round "8.41"]
[White "Gemy, Jose Daniel"]
[Black "Rakotomaharo, Fy Antenaina"]
[Result "1/2-1/2"]
[WhiteElo "2373"]
[BlackElo "2490"]
[Annotator "TA"]
[PlyCount "113"]
[EventDate "2022.??.??"]
[TimeControl "60"]

{[%evp 15,113,7,26,0,0,-20,-4,-20,-41,-35,-32,-37,-15,-25,-8,-25,-2,-10,-31,
-22,-36,-16,101,96,97,72,61,29,25,29,3,0,0,0,0,0,0,0,0,0,12,-16,-29,-27,-25,
-25,-25,-114,-107,-174,-173,-219,-205,-323,-317,-316,-313,-289,-211,-197,-56,
-50,-45,-241,-249,-194,-112,-103,-58,-374,-317,-1132,-1132,-1132,-1132,-1368,
-15,-15,-15,-15,-15,-15,-15,-97,0,0,0,0,0,0,0,0,0,0,0,0,0,0,0,0]} 1. e4 {
[%emt 0:00:03]} c5 {[%emt 0:00:08]} 2. Nf3 {[%emt 0:00:14]} e6 {[%emt 0:00:05]}
3. d4 {[%emt 0:00:18]} cxd4 {[%emt 0:00:05]} 4. Nxd4 {[%emt 0:00:03]} Nf6 {
[%emt 0:00:05][%cal Yg8f6,Yf6d5,Yd5b4]} 5. Nc3 {[%emt 0:00:04]} Nc6 {[%emt 0:
00:03]} 6. Nxc6 {[%emt 0:00:12]} bxc6 {[%emt 0:00:06]} 7. e5 {[%emt 0:00:00]}
Nd5 {[%emt 0:00:06]} 8. Ne4 {[%emt 0:00:09]} Bb7 {[%emt 0:01:36]} 9. c4 {
[%emt 0:10:23] B45: Sicilian Four Knights.} Nb4 {[%emt 0:00:05]} 10. a3 {
[%emt 0:19:09]} Qa5 {[%emt 0:00:58]} 11. Nc3 {[%emt 0:10:32]} (11. Nd6+ Bxd6
12. Qxd6 Nd3+ 13. Ke2 Nxe5 $17) 11... Qxe5+ {[%emt 0:00:19]} 12. Be2 {[%emt 0:
00:00]} Na6 {[%emt 0:00:05]} 13. f4 {[%emt 0:00:12] [#]} Qd6 $146 {[%emt 0:00:
00]} ({Predecessor:} 13... Qf6 14. Bf3 d5 15. cxd5 exd5 16. O-O Bc5+ 17. Kh1
O-O 18. Ne2 Bb6 19. Ng3 Nc5 {0-1 (91) Karttunen,M (2480)-Grachev,B (2615)
Chess.com INT 2021}) 14. Qc2 {[%emt 0:01:11]} Be7 {[%emt 0:06:11]} 15. Be3 {
[%emt 0:01:21] Inhibits Qd4.} O-O {[%emt 0:00:44]} 16. Bd3 {[%emt 0:04:36]} f5
{[%emt 0:04:43]} 17. O-O-O {[%emt 0:04:52][%cal Yd3f5]} Qc7 {[%emt 0:00:40]}
18. g4 {[%emt 0:01:17][%cal Rg4f5]} Qa5 {[%emt 0:15:06]} (18... Nc5 $11) 19.
gxf5 $16 {[%emt 0:03:53]} exf5 {[%emt 0:00:21]} 20. Bd2 {[%emt 0:02:45][%cal
Yc3d5]} Nc5 {[%emt 0:00:52]} 21. Bxf5 {[%emt 0:02:25]} Rxf5 {[%emt 0:06:46]}
22. Nd5 $1 {[%emt 0:01:05]} Qd8 {[%emt 0:00:06][%cal Yc6d5]} 23. Nxe7+ {
[%emt 0:02:58]} Qxe7 {[%emt 0:00:04]} 24. Qxf5 {[%emt 0:00:05]} Nb3+ $1 {
[%emt 0:00:25]} 25. Kb1 {[%emt 0:00:09]} Nxd2+ {[%emt 0:01:53]} (25... c5 $2
26. Rhe1 Nxd2+ 27. Ka2 $18 (27. Kc2 $2 Be4+ 28. Kc3 Bxf5 $19)) 26. Rxd2 {
[%emt 0:10:34]} c5 {[%emt 0:00:07] Threatens to win with ...Be4+.} 27. Rd5 $1 {
[%emt 0:00:04] Black must now prevent Re5.} Rf8 {[%emt 0:00:52]} 28. Qe5 {
[%emt 0:03:48]} (28. Qd3 $5 {[%cal Rd5e5]} d6 29. Rd1 $1 $14) 28... Qxe5 {
[%emt 0:09:54]} 29. fxe5 {[%emt 0:00:04]} Bxd5 {[%emt 0:05:47]} 30. cxd5 $11 {
[%emt 0:00:05] Endgame KR-KR} Rf2 {[%emt 0:04:38]} 31. Rc1 {[%emt 0:00:00]} (
31. e6 $11 dxe6 32. dxe6) 31... Rxh2 $17 {[%emt 0:00:25]} 32. Rxc5 {[%emt 0:00:
06]} (32. e6 $17 dxe6 33. dxe6) 32... Re2 $1 $19 {[%emt 0:01:46]} 33. Rc8+ {
[%emt 0:03:54]} ({Reject} 33. Rc7 Rxe5 34. Rxd7 g5) 33... Kf7 {[%emt 0:00:14]}
34. Rc7 {[%emt 0:00:17]} (34. e6+ $142 dxe6 35. Rh8 (35. Rc7+ Kf6 $17)) 34...
Rxe5 {[%emt 0:00:13]} 35. Rxd7+ {[%emt 0:04:42]} Re7 {[%emt 0:00:00]} 36. Rd8 {
[%emt 0:00:07]} h5 {[%emt 0:00:26]} 37. d6 {[%emt 0:00:21] [#]} Rb7 {[%emt 0:
00:15]} (37... Re8 $1 $19 {[%cal Re8d8]} 38. Rd7+ Kf6 39. Rxa7 h4) 38. Kc2 $15
{[%emt 0:02:21]} Ke6 {[%emt 0:01:11]} 39. Rh8 $2 {[%emt 0:00:00]} (39. Kc3 $15)
39... g6 $19 {[%emt 0:00:16]} (39... Kxd6 40. Rxh5 Ke6 41. Rh7 $11) 40. Rg8 {
[%emt 0:01:53]} Kf6 {[%emt 0:09:36]} ({Weaker is} 40... Kxd6 41. Rxg6+ Kc5 42.
Rg5+ Kb6 43. Rxh5 $14) (40... Kf5 $19 {...Rd7 is the strong threat.} 41. Rf8+
Kg4) 41. Rd8 $17 {[%emt 0:17:27] Against Rd7} Rh7 {[%emt 0:00:00]} 42. d7 $2 {
[%emt 0:02:19] [#]} (42. Kd2 $15) 42... Kg5 $1 $19 {[%emt 0:02:26] Hoping for .
..h4.} 43. b4 $2 {[%emt 0:01:29]} (43. Kd3 h4 44. Ke3) 43... h4 {[%emt 0:00:07]
} 44. b5 {[%emt 0:00:50]} h3 {[%emt 0:00:11]} 45. a4 {[%emt 0:00:23]} h2 $2 {
[%emt 0:09:39]} (45... Kh4 $19 46. Rg8 Rxd7 47. Rxg6 Rh7) 46. Rf8 $11 {[%emt 0:
01:27]} Rxd7 {[%emt 0:00:05]} 47. Rh8 {[%emt 0:00:00]} Rd4 {[%emt 0:00:06]} 48.
Rxh2 {[%emt 0:00:23]} Rxa4 {[%emt 0:00:02] ( -> ...Ra2+)} 49. Kb3 {[%emt 0:00:
13] Prevents Ra2.} (49. Kd3 $11 {keeps the balance.}) 49... Rh4 {[%emt 0:01:00]
} ({Better is} 49... Ra1 $17 {And now ... Kf4 would win.} 50. Rg2+ Kf5 51. Rf2+
Kg5 52. Rg2+ Kf6 53. Rf2+ Kg7) 50. Rg2+ $1 {[%emt 0:00:05] The position is
equal.} Kf5 {[%emt 0:00:21]} 51. Rf2+ $1 {[%emt 0:00:12]} Ke6 {[%emt 0:04:32]}
52. Rg2 {[%emt 0:01:23]} Rh3+ {[%emt 0:00:00]} 53. Kb4 $1 {[%emt 0:00:40]} Kf5
{[%emt 0:00:20]} 54. Rf2+ $1 {[%emt 0:00:00]} Ke6 {[%emt 0:00:10]} 55. Re2+ {
[%emt 0:01:16]} Kf6 {[%emt 0:00:03] Strongly threatening ...g5.} 56. Rf2+ {
[%emt 0:00:20]} Ke6 {[%emt 0:00:14]} 57. Re2+ {[%emt 0:00:00] White happily
takes the draw. Weighted Error Value: White=0.50/Black=0.25 (precise)} 1/2-1/2

[Event "44th Chess Olympiad Open 2022"]
[Site "Chennai"]
[Date "2022.08.06"]
[Round "8.41"]
[White "Mendoza, Rodrigo"]
[Black "Rakotomaharavo, Dylan"]
[Result "1-0"]
[WhiteElo "2215"]
[BlackElo "1948"]
[Annotator "NA RC"]
[PlyCount "81"]
[EventDate "2022.??.??"]
[TimeControl "60"]

1. d4 {[%emt 0:01:19]} Nf6 {[%emt 0:00:06]} 2. c4 {[%emt 0:00:03]} e6 {[%emt 0:
00:00]} 3. Nf3 {[%emt 0:00:02]} d5 {[%emt 0:00:08]} 4. Qc2 {[%emt 0:00:42]} Be7
{[%emt 0:03:42]} 5. Nbd2 {[%emt 0:06:15]} O-O {[%emt 0:00:14]} 6. e3 {[%emt 0:
00:00]} Nbd7 {[%emt 0:00:59]} 7. b3 {[%emt 0:00:32]} c5 {[%emt 0:00:17]} 8.
dxc5 {[%emt 0:03:18]} Nxc5 {[%emt 0:00:10]} 9. Bb2 {[%emt 0:00:00]} b6 {
[%emt 0:00:28]} 10. Be2 {[%emt 0:00:05]} Bb7 {[%emt 0:00:19]} 11. O-O {[%emt 0:
00:00]} Rc8 {[%emt 0:00:23]} 12. Rfd1 {[%emt 0:04:39]} Qe8 {[%emt 0:00:43]} 13.
Bd4 {[%emt 0:08:20]} dxc4 {[%emt 0:02:48]} 14. Nxc4 {[%emt 0:04:04]} b5 {
[%emt 0:05:00]} 15. Nce5 {[%emt 0:04:14]} Na4 {[%emt 0:06:36]} 16. Qd3 {
[%emt 0:01:00]} Be4 {[%emt 0:07:18]} 17. Qxb5 {[%emt 0:01:53]} Qxb5 {[%emt 0:
00:00]} 18. Bxb5 {[%emt 0:00:01]} Nc3 {[%emt 0:00:10]} 19. Bxc3 {[%emt 0:00:05]
} Rxc3 {[%emt 0:00:04]} 20. Bc4 {[%emt 0:29:30]} h6 {[%emt 0:04:24]} 21. Nd4 {
[%emt 0:07:10]} Bc5 {[%emt 0:01:52]} 22. h3 {[%emt 0:09:27]} Rc8 {[%emt 0:00:
00]} 23. Rac1 {[%emt 0:10:26]} Rxc1 {[%emt 0:01:50]} 24. Rxc1 {[%emt 0:00:01]}
Bd6 {[%emt 0:00:54]} 25. Nxf7 {[%emt 0:03:24]} Ba3 {[%emt 0:03:21]} 26. Nd6 {
[%emt 0:03:16]} Rxc4 {[%emt 0:00:06]} 27. Rxc4 {[%emt 0:00:05]} Bxd6 {[%emt 0:
00:00]} 28. Nb5 {[%emt 0:00:12]} Bf8 {[%emt 0:01:20]} 29. Nxa7 {[%emt 0:00:56]}
Bb1 {[%emt 0:00:20]} 30. Ra4 {[%emt 0:01:10]} Nd5 {[%emt 0:00:09]} 31. Nb5 {
[%emt 0:00:14]} Kf7 {[%emt 0:00:49]} 32. Ra7+ {[%emt 0:00:25]} Kf6 {[%emt 0:00:
00]} 33. a4 {[%emt 0:01:12]} Ba2 {[%emt 0:00:21]} 34. Nd4 {[%emt 0:00:38]} e5 {
[%emt 0:01:29]} 35. Ra6+ {[%emt 0:00:04]} Kf7 {[%emt 0:01:08]} 36. Nf3 {
[%emt 0:00:20]} Bxb3 {[%emt 0:01:00]} 37. Nxe5+ {[%emt 0:00:05]} Kg8 {[%emt 0:
00:00]} 38. Ra8 {[%emt 0:00:35]} Nc7 {[%emt 0:01:27]} 39. Rc8 {[%emt 0:00:46]}
Bxa4 {[%emt 0:02:58]} 40. Rxc7 {[%emt 0:00:16]} Kh7 {[%emt 0:00:00]} 41. Nf3 {
[%emt 0:30:35]} 1-0

[Event "44th Chess Olympiad Open 2022"]
[Site "Chennai"]
[Date "2022.08.06"]
[Round "8.41"]
[White "Razanadrakotoarisoa, Toavina"]
[Black "Pinto, Daniel"]
[Result "0-1"]
[WhiteElo "2039"]
[BlackElo "2249"]
[Annotator "NA RC"]
[PlyCount "84"]
[EventDate "2022.??.??"]
[TimeControl "60"]

1. e4 {[%emt 0:00:04]} e5 {[%emt 0:00:08]} 2. Nf3 {[%emt 0:00:17]} Nc6 {
[%emt 0:00:10]} 3. Bc4 {[%emt 0:00:10]} Nf6 {[%emt 0:00:40]} 4. d3 {[%emt 0:00:
00]} Bc5 {[%emt 0:00:56]} 5. O-O {[%emt 0:00:31]} d6 {[%emt 0:01:22]} 6. c3 {
[%emt 0:01:45]} a5 {[%emt 0:01:16]} 7. Re1 {[%emt 0:02:00]} h6 {[%emt 0:07:08]}
8. a4 {[%emt 0:02:06]} O-O {[%emt 0:00:00]} 9. Nbd2 {[%emt 0:06:12]} Be6 {
[%emt 0:01:44]} 10. Qb3 {[%emt 0:02:16]} Qd7 {[%emt 0:06:18]} 11. Nf1 {[%emt 0:
00:00]} Bg4 {[%emt 0:04:44]} 12. Qd1 {[%emt 0:05:30]} Ne7 {[%emt 0:04:57]} 13.
h3 {[%emt 0:14:14]} Be6 {[%emt 0:00:27]} 14. Bxe6 {[%emt 0:04:08]} fxe6 {
[%emt 0:00:22]} 15. Ng3 {[%emt 0:00:51]} Ng6 {[%emt 0:01:05]} 16. Qc2 {[%emt 0:
00:00]} Nh7 {[%emt 0:05:15]} 17. d4 {[%emt 0:05:13]} exd4 {[%emt 0:02:41]} 18.
Nxd4 {[%emt 0:04:39]} Nf4 {[%emt 0:26:07]} 19. Be3 {[%emt 0:10:13]} Kh8 {
[%emt 0:01:10]} 20. Rad1 {[%emt 0:01:37]} Rf7 {[%emt 0:07:47]} 21. e5 {[%emt 0:
00:00]} Nd5 {[%emt 0:08:27]} 22. exd6 {[%emt 0:04:19]} Bxd4 {[%emt 0:08:43]}
23. Bxd4 {[%emt 0:01:35]} cxd6 {[%emt 0:01:03]} 24. Qg6 {[%emt 0:04:24]} Nf4 {
[%emt 0:00:11]} 25. Qg4 {[%emt 0:00:42]} Raf8 {[%emt 0:04:21]} 26. Ne4 {
[%emt 0:05:17]} h5 {[%emt 0:02:31]} 27. Qh4 {[%emt 0:01:12]} Qc6 {[%emt 0:00:
00]} 28. g3 {[%emt 0:02:05]} e5 {[%emt 0:00:31]} 29. gxf4 {[%emt 0:00:52]} Rxf4
{[%emt 0:01:51]} 30. Qxh5 {[%emt 0:00:07]} Rxe4 {[%emt 0:01:22]} 31. Rxe4 {
[%emt 0:00:02]} Qxe4 {[%emt 0:00:06]} 32. Be3 {[%emt 0:00:04]} Qc6 {[%emt 0:00:
00]} 33. Qg4 {[%emt 0:01:37]} d5 {[%emt 0:00:24]} 34. Qh5 {[%emt 0:01:05]} Qe6
{[%emt 0:00:25]} 35. Qg4 {[%emt 0:00:00]} Qc6 {[%emt 0:00:25]} 36. Qg2 {
[%emt 0:00:32]} Rd8 {[%emt 0:00:35]} 37. Qf3 {[%emt 0:00:27]} Kg8 {[%emt 0:00:
00]} 38. b3 {[%emt 0:00:37]} Rd7 {[%emt 0:00:37]} 39. b4 {[%emt 0:00:29]} axb4
{[%emt 0:00:24]} 40. cxb4 {[%emt 0:00:36]} Qg6+ {[%emt 0:00:29]} 41. Qg2 {
[%emt 0:30:13]} Qf7 {[%emt 0:30:31]} 42. Bb6 {[%emt 0:00:00]} Rd6 {[%emt 0:00:
00]} 0-1

[Event "44th Chess Olympiad Open 2022"]
[Site "Chennai"]
[Date "2022.08.06"]
[Round "8.41"]
[White "Rajerison, Mananihaja Charly"]
[Black "Bolanos, Fernando"]
[Result "0-1"]
[WhiteElo "1912"]
[BlackElo "2258"]
[Annotator "RC"]
[PlyCount "76"]
[EventDate "2022.??.??"]
[TimeControl "60"]

1. e4 {[%emt 0:00:03]} c5 {[%emt 0:00:00]} 2. Nf3 {[%emt 0:00:08]} d6 {[%emt 0:
00:00]} 3. d4 {[%emt 0:00:19]} cxd4 {[%emt 0:00:00]} 4. Nxd4 {[%emt 0:00:05]}
Nf6 {[%emt 0:00:07]} 5. Nc3 {[%emt 0:00:08]} a6 {[%emt 0:01:50]} 6. Bc4 {
[%emt 0:01:00]} e6 {[%emt 0:02:17]} 7. Bb3 {[%emt 0:00:43]} Be7 {[%emt 0:02:47]
} 8. O-O {[%emt 0:00:14]} b5 {[%emt 0:01:52]} 9. Qf3 {[%emt 0:04:24]} Qb6 {
[%emt 0:05:23]} 10. Be3 {[%emt 0:00:43]} Qb7 {[%emt 0:00:05]} 11. Rfe1 {
[%emt 0:02:58]} O-O {[%emt 0:03:41]} 12. Bg5 {[%emt 0:10:25]} Nbd7 {[%emt 0:00:
00]} 13. Qg3 {[%emt 0:05:57]} b4 {[%emt 0:28:52]} 14. Na4 {[%emt 0:42:11]} Nxe4
{[%emt 0:17:31]} 15. Rxe4 {[%emt 0:00:08]} Bxg5 {[%emt 0:03:43]} 16. Rg4 {
[%emt 0:00:26]} Bf6 {[%emt 0:00:40]} 17. Nf3 {[%emt 0:05:30]} Ne5 {[%emt 0:00:
00]} 18. Rf4 {[%emt 0:01:27]} Nxf3+ {[%emt 0:01:06]} 19. Rxf3 {[%emt 0:00:13]}
Be5 {[%emt 0:00:09]} 20. Qh4 {[%emt 0:00:26]} Bd7 {[%emt 0:01:57]} 21. Re1 {
[%emt 0:01:36]} Rac8 {[%emt 0:08:38]} 22. Rh3 {[%emt 0:04:13]} h6 {[%emt 0:00:
00]} 23. Rxe5 {[%emt 0:06:14]} dxe5 {[%emt 0:02:17]} 24. Rg3 {[%emt 0:00:29]}
Kh8 {[%emt 0:01:04]} 25. Qg4 {[%emt 0:00:13]} Rg8 {[%emt 0:01:23]} 26. Qh5 {
[%emt 0:01:36]} Bxa4 {[%emt 0:02:55]} 27. Bxa4 {[%emt 0:00:29]} Qe4 {[%emt 0:
00:00]} 28. Re3 {[%emt 0:00:24]} Qf5 {[%emt 0:00:21]} 29. Qe2 {[%emt 0:00:19]}
Rgd8 {[%emt 0:00:49]} 30. h3 {[%emt 0:00:17]} Qf4 {[%emt 0:01:14]} 31. Rf3 {
[%emt 0:01:37]} Qc1+ {[%emt 0:00:09]} 32. Kh2 {[%emt 0:00:20]} f6 {[%emt 0:00:
00]} 33. c3 {[%emt 0:00:38]} bxc3 {[%emt 0:00:18]} 34. bxc3 {[%emt 0:01:43]}
Rxc3 {[%emt 0:00:01]} 35. g3 {[%emt 0:00:38]} Rd2 {[%emt 0:01:06]} 36. Rxc3 {
[%emt 0:00:34]} Qxc3 {[%emt 0:00:10]} 37. Qe1 {[%emt 0:00:31]} Qd4 {[%emt 0:00:
00]} 38. Kg1 {[%emt 0:00:10]} Rxa2 {[%emt 0:00:20]} 0-1